fUSD/lending_fUSD_20251215
["ID","MTS","AMOUNT","RATE_DAILY","PERIOD"]
[398529195,1765792246234,-500.0,0.00017973,2]
[398529196,1765792246244,-165.41844383,0.00017973,2]
[398529197,1765792246253,-207.31663345,0.00017973,2]
[398529198,1765792246264,-500.0,0.00017973,2]
[398529199,1765792246275,-500.0,0.00017973,2]
[398529200,1765792246285,-500.0,0.00017973,2]
[398529201,1765792246294,-500.0,0.00017973,2]
[398529202,1765792246304,-374.08576034,0.00017973,2]
[398529203,1765792246313,-220.08691994,0.00017973,2]
[398529204,1765792246323,-500.0,0.00017973,2]
[398529205,1765792246333,-166.7753196,0.00017973,2]
[398529206,1765792246343,-500.0,0.00017973,2]
[398529207,1765792246352,-164.6917699,0.00017973,2]
[398529208,1765792246361,-500.0,0.00017973,2]
[398529210,1765792246370,-168.43051183,0.00017973,2]
[398529212,1765792246380,-160.9490228,0.00017973,2]
[398529214,1765792246389,-500.0,0.00017973,2]
[398529216,1765792246398,-500.0,0.00017973,2]
[398529217,1765792246407,-1502.0,0.00017979,2]
[398529218,1765792246416,-217.63608899,0.00017983,2]
[398529219,1765792246425,-1585.34367833,0.00017988,2]
[398529220,1765792246435,-168.0,0.00017994,2]
[398529221,1765792246443,-151.0,0.00017997,2]
[398529222,1765792246453,-500.0,0.00017999,2]
[398529223,1765792246463,-500.0,0.00017999,2]
[398529224,1765792246472,-500.0,0.00017999,2]
[398529225,1765792246481,-500.0,0.00017999,2]
[398529226,1765792246490,-500.0,0.00017999,2]
[398529227,1765792246499,-500.0,0.00017999,2]
[398529228,1765792246508,-500.0,0.00017999,2]
[398529229,1765792246517,-500.0,0.00017999,2]
[398529230,1765792246526,-500.0,0.00017999,2]
[398529231,1765792246536,-339.06,0.00017999,2]
[398529232,1765792246545,-500.0,0.00017999,2]
[398529233,1765792246555,-500.0,0.00017999,2]
[398529234,1765792246563,-207.18201818,0.00017999,2]
[398529235,1765792246573,-500.0,0.00017999,2]
[398529236,1765792246582,-500.0,0.00017999,2]
[398529237,1765792246592,-500.0,0.00017999,2]
[398529238,1765792246602,-500.0,0.00017999,2]
[398529239,1765792246612,-596.05008822,0.00017999,2]
[398529240,1765792246621,-500.0,0.00017999,2]
[398529241,1765792246631,-500.0,0.00017999,2]
[398529242,1765792246640,-2000.0,0.00017999,2]
[398529243,1765792246650,-2000.0,0.00017999,2]
[398529244,1765792246659,-2000.0,0.00017999,2]
[398529245,1765792246668,-2000.0,0.00018,2]
[398529246,1765792246677,-1184.74257645,0.00018,2]
[398529247,1765792246686,-160.31299943,0.00018,2]
[398529248,1765792246695,-1246.0,0.00018,4]
[398529249,1765792246704,-241.97291012,0.00018,2]
[398529250,1765792246714,-60445.8355629,0.00018,7]
[398529251,1765792246723,-1500.0,0.00018,2]
[398529252,1765792246732,-1587.72,0.00018,2]
[398529253,1765792246741,-16346.70599055,0.00018,2]
[398529254,1765792246751,-8805.65015107,0.00018,2]
[398529257,1765792249799,-18022.13392193,0.00018,2]
[398529258,1765792249943,-150.0,0.00016999,2]
[398529259,1765792249953,-212.5,0.00018,2]
[398529260,1765792249965,-4110.00171414,0.00018,2]
[398529261,1765792249976,-23984.18290659,0.00018,2]
[398529262,1765792249985,-101850.16563518,0.00018,2]
[398529263,1765792249994,-477.90803118,0.00018,7]
[398529264,1765792250003,-1708.0,0.00018,2]
[398529265,1765792250012,-200.516518,0.00018,2]
[398529266,1765792250021,-543.7,0.00018025,2]
[398529267,1765792250030,-152.0,0.0001803,5]
[398529268,1765792250040,-1098.0,0.00018035,2]
[398529269,1765792250049,-506.79331904,0.00018068,2]
[398529270,1765792250058,-1500.0,0.00018068,2]
[398529271,1765792250067,-1000.0,0.00018068,2]
[398529272,1765792250077,-1500.0,0.00018068,2]
[398529273,1765792250086,-1500.0,0.00018068,2]
[398529274,1765792250095,-1500.0,0.00018068,2]
[398529275,1765792250104,-1500.0,0.00018068,2]
[398529276,1765792250113,-1500.0,0.00018068,2]
[398529277,1765792250122,-379.34447673,0.00018068,2]
[398529278,1765792250131,-1500.0,0.00018068,2]
[398529279,1765792250141,-503.38309233,0.00018068,2]
[398529280,1765792250150,-836.04580028,0.00018073,7]
[398529281,1765792250160,-956.34,0.00018082,6]
[398529282,1765792250170,-1000.0,0.00018082,2]
[398529283,1765792250178,-464.18,0.00018082,2]
[398529284,1765792250190,-250.0,0.000181,2]
[398529285,1765792250203,-1771.08143471,0.000181,2]
[398529286,1765792250212,-1708.0,0.0001818,2]
[398529287,1765792250222,-223.06834373,0.0001818,2]
[398529288,1765792250231,-152.0,0.00018198,6]
[398529289,1765792250242,-1405.4,0.00018203,2]
[398529290,1765792250251,-166.89,0.0001826,2]
[398529291,1765792250260,-1585.34367833,0.0001826,2]
[398529292,1765792250270,-155.94,0.00018272,2]
[398529293,1765792250280,-353.90336875,0.00018286,2]
[398529294,1765792250289,-543.7,0.00018299,2]
[398529295,1765792250299,-956.34,0.00018356,7]
[398529296,1765792250308,-88051.74,0.00018356,2]
[398529297,1765792250318,-1708.0,0.0001836,2]
[398529298,1765792250327,-152.0,0.00018365,7]
[398529299,1765792250337,-363.08,0.00018388,2]
[398529300,1765792250345,-273.61387494,0.00018398,2]
[398529301,1765792250354,-155.93357709,0.00018444,2]
[398529302,1765792250364,-1405.4,0.00018477,2]
[398529303,1765792250373,-1000.0,0.00018521,2]
[398529304,1765792250382,-1000.0,0.00018521,2]
[398529305,1765792250390,-1000.0,0.00018521,2]
[398529306,1765792250399,-1000.0,0.00018521,2]
[398529307,1765792250408,-500.77689369,0.00018521,2]
[398529308,1765792250416,-1000.0,0.00018521,2]
[398529309,1765792250425,-1000.0,0.00018521,2]
[398529310,1765792250434,-1000.0,0.00018521,2]
[398529311,1765792250443,-150.0,0.00018521,2]
[398529312,1765792250453,-1000.0,0.00018521,2]
[398529313,1765792250462,-1000.0,0.00018521,2]
[398529314,1765792250471,-1000.0,0.00018521,2]
[398529315,1765792250480,-1000.0,0.00018521,2]
[398529316,1765792250489,-1000.0,0.00018521,2]
[398529317,1765792250498,-1000.0,0.00018521,2]
[398529318,1765792250507,-1000.0,0.00018521,2]
[398529319,1765792250516,-500.2027477,0.00018521,2]
[398529320,1765792250524,-167.58191179,0.00018521,2]
[398529321,1765792250533,-1000.0,0.00018521,2]
[398529322,1765792250542,-1000.0,0.00018521,2]
[398529323,1765792250551,-369.63901414,0.00018521,2]
[398529324,1765792250560,-1000.0,0.00018521,2]
[398529325,1765792250569,-500.22943078,0.00018521,2]
[398529326,1765792250578,-467.64408556,0.00018521,2]
[398529327,1765792250588,-1000.0,0.00018521,2]
[398529328,1765792250598,-1001.45739358,0.00018521,2]
[398529329,1765792250607,-501.98284237,0.00018521,2]
[398529330,1765792250617,-176.75702751,0.00018521,2]
[398529331,1765792250626,-1000.0,0.00018521,2]
[398529332,1765792250635,-1000.0,0.00018521,2]
[398529333,1765792250644,-1000.0,0.00018521,2]
[398529334,1765792250653,-1000.0,0.00018521,2]
[398529335,1765792250662,-1000.0,0.00018521,2]
[398529336,1765792250672,-1000.0,0.00018521,2]
[398529337,1765792250681,-498.72418643,0.00018521,2]
[398529338,1765792250690,-1000.0,0.00018521,2]
[398529339,1765792250700,-1000.0,0.00018521,2]
[398529340,1765792250709,-1000.0,0.00018521,2]
[398529341,1765792250718,-1000.0,0.00018521,2]
[398529342,1765792250728,-1000.0,0.00018521,2]
[398529343,1765792250737,-1000.0,0.00018521,2]
[398529344,1765792250746,-1000.0,0.00018521,2]
[398529345,1765792250755,-1000.0,0.00018521,2]
[398529346,1765792250764,-509.26691978,0.00018521,2]
[398529347,1765792250773,-501.34647939,0.00018521,2]
[398529348,1765792250782,-1000.0,0.00018521,2]
[398529349,1765792250791,-1000.0,0.00018521,2]
[398529350,1765792250800,-551.03457133,0.00018521,2]
[398529351,1765792250809,-1000.0,0.00018521,2]
[398529352,1765792250818,-1000.0,0.00018521,2]
[398529353,1765792250827,-1000.0,0.00018521,2]
[398529354,1765792250836,-1000.0,0.00018521,2]
[398529355,1765792250846,-1000.0,0.00018521,2]
[398529356,1765792250855,-699.14559614,0.00018521,2]
[398529357,1765792250865,-1000.0,0.00018521,2]
[398529358,1765792250875,-1000.0,0.00018521,2]
[398529359,1765792250884,-1000.0,0.00018521,2]
[398529360,1765792250893,-1000.0,0.00018521,2]
[398529361,1765792250902,-1000.0,0.00018521,2]
[398529362,1765792250911,-1502.0,0.00018527,2]
[398529363,1765792250920,-152.0,0.00018533,8]
[398529364,1765792250929,-1708.0,0.0001854,2]
[398529365,1765792250940,-547.67,0.00018549,2]
[398529366,1765792250961,-543.7,0.00018573,2]
[398529367,1765792250984,-151.0,0.0001858,2]
[398529368,1765792251005,-2000.0,0.00018616,2]
[398529369,1765792251026,-2000.0,0.00018616,2]
[398529370,1765792251047,-444.73034877,0.00018616,2]
[398529371,1765792251070,-2000.0,0.00018616,2]
[398529372,1765792251091,-2000.0,0.00018616,2]
[398529373,1765792251112,-502.82697118,0.00018616,2]
[398529374,1765792251134,-956.34,0.0001863,8]
[398529375,1765792251156,-500.0,0.00018645,2]
[398529376,1765792251176,-154.0,0.00018663,2]
[398529377,1765792251198,-152.0,0.00018663,2]
[398529378,1765792251220,-500.0,0.0001867,3]
[398529379,1765792251241,-2000.0,0.00018684,2]
[398529380,1765792251261,-152.0,0.00018701,9]
[398529381,1765792251271,-1405.4,0.00018751,2]
[398529382,1765792251281,-1000.0,0.0001876,2]
[398529383,1765792251292,-166.66,0.00018764,2]
[398529384,1765792251301,-223.06834373,0.00018781,2]
[398529385,1765792251310,-173.82,0.00018784,2]
[398529386,1765792251319,-4003.74941,0.0001883,2]
[398529387,1765792251329,-543.7,0.00018847,2]
[398529388,1765792251338,-152.0,0.00018869,10]
[398529389,1765792251348,-502.03126221,0.00018888,2]
[398529390,1765792251358,-4328.2690751,0.00018899,2]
[398529391,1765792251367,-157.8093672,0.000189,2]
[398529392,1765792251376,-1871.9925297,0.000189,2]
[398529393,1765792251386,-561.9409953,0.000189,2]
[398529394,1765792251396,-956.34,0.00018904,9]
[398529395,1765792251405,-587.0,0.00018904,2]
[398529396,1765792251415,-587.0,0.00018904,2]
[398529397,1765792251424,-464.12,0.00018904,2]
[398529398,1765792251433,-1217.27,0.00018904,2]
[398529399,1765792251442,-1098.0,0.00018936,2]
[398529400,1765792251451,-164.61537,0.0001895,2]
[398529401,1765792251460,-166.67,0.00018962,2]
[398529402,1765792251469,-500.0,0.0001899,2]
[398529403,1765792251479,-2500.0,0.00018997,2]
[398529404,1765792251489,-151.0,0.00018997,2]
[398529405,1765792251498,-694.19867132,0.00019,7]
[398529406,1765792251507,-2313.99557107,0.00019,2]
[398529407,1765792251517,-1619.79689975,0.00019,4]
[398529408,1765792251526,-669.91172219,0.00019,7]
[398529409,1765792251536,-2233.03907399,0.00019,2]
[398529410,1765792251545,-1563.12735179,0.00019,4]
[398529411,1765792251554,-4885434.33328988,0.00019,2]
[398529412,1765792251575,-38119.65746043,0.00019,2]
[398529413,1765792251593,-525.16036174,0.00019,2]
[398529414,1765792251712,-379.3298609,0.0001699,2]
[398529415,1765792251722,-379.3298609,0.0001699,2]
[398529416,1765792251731,-379.3298609,0.0001699,2]
[398529417,1765792251740,-563.0,0.00016999,2]
[398529418,1765792251749,-151.0,0.00017,2]
[398529419,1765792251758,-151.0,0.00017,2]
[398529420,1765792251766,-19452.54541729,0.00019,2]
[398529421,1765792251781,-179950.3589566,0.00019,2]
[398529422,1765792251903,-356.52,0.00017,2]
[398529423,1765792251911,-389.88126835,0.00019,2]
[398529424,1765792251920,-409.55999997,0.00019,2]
[398529425,1765792251932,-2036.50935644,0.00019,2]
[398529426,1765792251942,-24894.1919238,0.00019,2]
[398529623,1765793068578,200.0,0.00015633,2]
[398529688,1765793422275,-342.18880223,0.00015716,2]
[398529690,1765793423784,-230.28897526,0.00015716,2]
[398529691,1765793425379,-170.9346957,0.00015716,2]
[398529692,1765793430012,-185.35041865,0.00015716,2]
[398529698,1765793431974,-169.23710816,0.00015716,2]
[398529700,1765793431984,-195.0,0.00015746,2]
[398529702,1765793431993,-150.0,0.00015777,2]
[398529704,1765793432003,-250.0,0.00015777,2]
[398529706,1765793432011,-250.0,0.00015777,2]
[398529708,1765793432020,-500.0,0.00015781,3]
[398529710,1765793432029,-354.73,0.00015809,2]
[398529711,1765793432038,-250.0,0.00015809,2]
[398529712,1765793432047,-500.0,0.00015836,3]
[398529713,1765793432056,-166.66,0.00015881,2]
[398529714,1765793432065,-16.2431268,0.0001589,3]
[398529735,1765793435375,-271.90586894,0.0001589,3]
[398529736,1765793435387,-211.85100426,0.0001589,3]
[398529737,1765793435396,-1018.31,0.00015935,2]
[398529738,1765793435405,-500.0,0.00016164,4]
[398529739,1765793435415,-6.38946947,0.00016244,2]
[398529740,1765793435431,-367.19053542,0.00016244,2]
[398529741,1765793435440,-155.80946458,0.00016357,2]
[398529742,1765793435455,-1044.19053542,0.00016357,2]
[398529743,1765793435464,-766.33726458,0.00016358,2]
[398529744,1765793435483,-433.66273542,0.00016358,2]
[398529745,1765793435493,-300.0,0.00016358,2]
[398529746,1765793435503,-300.0,0.00016358,2]
[398529747,1765793435512,-300.0,0.00016358,2]
[398529748,1765793435521,-1000.0,0.00016361,2]
[398529749,1765793435531,-3338.7952,0.00016361,2]
[398529750,1765793435540,-2500.0,0.00016361,2]
[398529751,1765793435549,-173937.8909,0.00016361,2]
[398529752,1765793435558,-550.0,0.00016389,2]
[398529753,1765793435567,-250.46861729,0.0001639,2]
[398529754,1765793435577,-2521.92459635,0.0001639,2]
[398529755,1765793435586,-5169.0613212,0.0001639,2]
[398529756,1765793435595,-166.66,0.00016405,2]
[398529757,1765793435604,-500.0,0.00016438,4]
[398529758,1765793435613,-200.0,0.00016451,2]
[398529759,1765793435622,-151.0,0.00016451,2]
[398529760,1765793435631,-151.0,0.00016451,2]
[398529761,1765793435641,-151.0,0.00016451,2]
[398529762,1765793435650,-249.87817541,0.0001646,2]
[398529763,1765793435660,-500.0,0.0001646,2]
[398529764,1765793435668,-500.0,0.0001646,2]
[398529765,1765793435678,-500.0,0.0001646,2]
[398529766,1765793435688,-500.0,0.0001646,2]
[398529767,1765793435697,-500.0,0.0001646,2]
[398529768,1765793435706,-500.0,0.0001646,2]
[398529769,1765793435718,-1537.381,0.0001646,2]
[398529770,1765793435728,-500.0,0.0001646,2]
[398529771,1765793435737,-207.18201818,0.0001646,2]
[398529772,1765793435746,-500.0,0.0001646,2]
[398529773,1765793435757,-500.0,0.0001646,2]
[398529774,1765793435766,-497.34,0.0001646,2]
[398529775,1765793435775,-328.6136145,0.0001646,2]
[398529776,1765793435785,-500.0,0.0001646,2]
[398529777,1765793435796,-208.33749393,0.0001646,2]
[398529778,1765793435806,-549.80989755,0.0001646,2]
[398529779,1765793435816,-261.52676722,0.0001646,2]
[398529780,1765793435826,-500.0,0.0001646,2]
[398529781,1765793435835,-248.38461707,0.0001646,2]
[398529782,1765793435845,-500.0,0.0001646,2]
[398529783,1765793435854,-500.0,0.0001646,2]
[398529784,1765793435864,-500.0,0.0001646,2]
[398529785,1765793435873,-500.0,0.0001646,2]
[398529786,1765793435883,-581.6761671,0.0001646,2]
[398529787,1765793435892,-500.0,0.0001646,2]
[398529788,1765793435902,-500.0,0.0001646,2]
[398529789,1765793435911,-500.0,0.0001646,2]
[398529790,1765793435920,-416.47716402,0.0001646,2]
[398529791,1765793435931,-500.0,0.0001646,2]
[398529792,1765793435940,-500.0,0.0001646,2]
[398529793,1765793435950,-26.57679409,0.0001646,2]
[398529794,1765793435963,-142.60873907,0.0001646,2]
[398529795,1765793435972,-502.03126221,0.00016461,2]
[398529796,1765793435982,-1502.0,0.00016461,2]
[398529797,1765793435991,-553.64373807,0.00016461,2]
[398529798,1765793436001,-300.0,0.00016461,2]
[398529799,1765793436010,-200.0,0.00016461,2]
[398529800,1765793436020,-207.4,0.00016461,2]
[398529801,1765793436030,-273.70089026,0.00016461,2]
[398529802,1765793436039,-657.31,0.00016461,2]
[398529803,1765793436049,-1098.0,0.0001649,2]
[398529804,1765793436058,-250.0,0.000165,2]
[398529805,1765793436068,-250.0,0.000165,2]
[398529806,1765793436077,-250.0,0.000165,2]
[398529807,1765793436086,-250.0,0.000165,2]
[398529808,1765793436095,-250.0,0.000165,2]
[398529809,1765793436105,-250.0,0.000165,2]
[398529810,1765793436114,-250.0,0.000165,2]
[398529811,1765793436123,-250.0,0.000165,2]
[398529812,1765793436132,-250.0,0.000165,2]
[398529813,1765793436141,-31296.58085015,0.00016552,2]
[398529814,1765793436153,-2172.83654985,0.00016552,2]
[398529815,1765793436162,-769.2708,0.00016552,2]
[398529816,1765793436171,-500.0,0.00016661,2]
[398529817,1765793436180,-500.0,0.00016661,2]
[398529818,1765793436189,-500.0,0.00016661,2]
[398529819,1765793436198,-500.0,0.00016661,2]
[398529820,1765793436208,-500.0,0.00016661,2]
[398529821,1765793436217,-500.0,0.00016661,2]
[398529822,1765793436226,-2521.9245963,0.00016669,2]
[398529823,1765793436235,-5169.06132117,0.00016669,2]
[398529824,1765793436245,-354.73,0.00016687,2]
[398529825,1765793436257,-250.46861723,0.00016749,2]
[398529826,1765793436268,-500.0,0.00016899,2]
[398529827,1765793436277,-500.0,0.00016899,2]
[398529828,1765793436286,-166.66,0.00016929,2]
[398529829,1765793436296,-2521.9245963,0.00016948,2]
[398529830,1765793436305,-5169.06132117,0.00016948,2]
[398529831,1765793436316,-481.25235646,0.00016961,2]
[398529832,1765793436327,-500.0,0.00016973,2]
[398529833,1765793436336,-575.23573332,0.00016973,2]
[398529834,1765793436345,-335.75779875,0.00016973,2]
[398529835,1765793436355,-498.60294116,0.00016973,2]
[398529836,1765793436364,-500.0,0.00016973,2]
[398529837,1765793436374,-500.0,0.00016973,2]
[398529838,1765793436385,-500.0,0.00016973,2]
[398529839,1765793436395,-500.0,0.00016973,2]
[398529840,1765793436405,-500.0,0.00016973,2]
[398529841,1765793436415,-500.0,0.00016973,2]
[398529842,1765793436425,-544.96479342,0.00016973,2]
[398529843,1765793436435,-500.0,0.00016973,2]
[398529844,1765793436446,-500.0,0.00016973,2]
[398529845,1765793436457,-500.0,0.00016973,2]
[398529846,1765793436467,-500.0,0.00016973,2]
[398529847,1765793436476,-342.2254082,0.00016973,2]
[398529848,1765793436488,-157.7745918,0.00016973,2]
[398529849,1765793436498,-169.17840548,0.00016973,2]
[398529850,1765793436507,-500.0,0.00016973,2]
[398529851,1765793436516,-500.0,0.00016973,2]
[398529852,1765793436526,-515.49595078,0.00016973,2]
[398529853,1765793436534,-500.98827769,0.00016973,2]
[398529854,1765793436543,-500.0,0.00016973,2]
[398529855,1765793436552,-500.0,0.00016973,2]
[398529856,1765793436562,-500.0,0.00016973,2]
[398529857,1765793436571,-500.82958274,0.00016973,2]
[398529858,1765793436580,-500.0,0.00016973,2]
[398529859,1765793436590,-517.0,0.00016979,2]
[398529860,1765793436599,-916.5,0.00016986,2]
[398529861,1765793436608,-38560.90204047,0.00016986,2]
[398529862,1765793436626,-259.62461058,0.00016986,2]
[398529901,1765793439121,-282129.66334895,0.00016986,2]
[398529902,1765793439131,-500.0,0.00016999,2]
[398529903,1765793439140,-500.0,0.00016999,2]
[398529904,1765793439150,-500.0,0.00016999,2]
[398529905,1765793439159,-500.0,0.00016999,2]
[398529906,1765793439168,-500.0,0.00016999,2]
[398529907,1765793439178,-500.0,0.00016999,2]
[398529908,1765793439187,-500.0,0.00016999,2]
[398529909,1765793439196,-500.0,0.00016999,2]
[398529910,1765793439206,-500.0,0.00016999,2]
[398529911,1765793439215,-500.0,0.00016999,2]
[398529912,1765793439225,-500.0,0.00016999,2]
[398529913,1765793439235,-500.0,0.00016999,2]
[398529914,1765793439244,-500.0,0.00016999,2]
[398529915,1765793439661,-500.0,0.00016999,2]
[398529916,1765793439670,-500.0,0.00016999,2]
[398529917,1765793439680,-500.0,0.00016999,2]
[398529918,1765793439689,-266.73524833,0.00016999,2]
[398529919,1765793439699,-152.37400623,0.00017,2]
[398529920,1765793439709,-1502.0,0.00017009,2]
[398529921,1765793439722,-574.12855637,0.00017009,2]
[398529922,1765793439731,-517.0,0.00017032,2]
[398529923,1765793439740,-911.0,0.00017062,2]
[398529924,1765793439749,-1196.0,0.00017062,2]
[398529925,1765793439759,-2426.0,0.00017062,2]
[398529926,1765793439768,-563.0,0.0001707,2]
[398529927,1765793439778,-168.0,0.00017087,2]
[398529928,1765793439787,-150.0,0.00017088,2]
[398529929,1765793439798,-150.00000001,0.00017088,2]
[398529930,1765793439807,-150.958,0.00017099,2]
[398529931,1765793439816,-250.46861723,0.00017107,2]
[398529932,1765793439825,-4103.0,0.00017111,2]
[398529933,1765793439835,-517.0,0.00017148,2]
[398529934,1765793439844,-517.0,0.0001717,2]
[398529935,1765793439853,-150.0,0.00017199,2]
[398529936,1765793439863,-150.0,0.00017199,2]
[398529937,1765793439872,-150.0,0.00017199,2]
[398529938,1765793439882,-150.0,0.00017199,2]
[398529939,1765793439892,-150.0,0.00017199,2]
[398529940,1765793439902,-150.0,0.00017199,2]
[398529941,1765793439912,-150.0,0.00017199,2]
[398529942,1765793439922,-1324.0,0.00017199,2]
[398529943,1765793439931,-1607.0,0.00017199,2]
[398529944,1765793439940,-3451.0,0.00017199,2]
[398529945,1765793439950,-611.0,0.00017199,2]
[398529946,1765793439959,-589.0,0.00017199,2]
[398529947,1765793439968,-1261.0,0.00017199,2]
[398529948,1765793439978,-2521.9245963,0.00017227,2]
[398529949,1765793439988,-5169.06132117,0.00017227,2]
[398529950,1765793439997,-916.5,0.0001726,3]
[398529951,1765793440007,-517.0,0.00017261,2]
[398529952,1765793440017,-300.0,0.00017288,2]
[398529953,1765793440026,-300.0,0.00017288,2]
[398529954,1765793440035,-300.0,0.00017288,2]
[398529955,1765793440044,-300.0,0.00017288,2]
[398529956,1765793440053,-300.0,0.00017288,2]
[398529957,1765793440066,-5000.0,0.00017288,3]
[398529958,1765793440075,-1022.63207373,0.00017288,3]
[398529959,1765793440084,-195.0,0.00017288,2]
[398529960,1765793440094,-300.0,0.00017288,2]
[398529961,1765793440103,-2500.0,0.00017288,2]
[398529962,1765793440112,-200.0,0.00017288,2]
[398529963,1765793440120,-200.0,0.00017288,2]
[398529964,1765793440130,-200.0,0.00017288,2]
[398529965,1765793440139,-200.0,0.00017288,2]
[398529966,1765793440148,-202.48923913,0.00017288,2]
[398529967,1765793440157,-517.0,0.00017297,2]
[398529968,1765793440166,-2000.0,0.000173,2]
[398529969,1765793440175,-517.0,0.00017319,2]
[398529970,1765793440185,-200.0,0.00017336,2]
[398529971,1765793440194,-166.0,0.0001734,2]
[398529972,1765793440203,-517.0,0.00017351,2]
[398529973,1765793440212,-250.0,0.00017354,2]
[398529974,1765793440221,-1098.0,0.00017358,2]
[398529975,1765793440230,-517.0,0.00017404,2]
[398529976,1765793440239,-166.66,0.00017453,2]
[398529977,1765793440249,-1708.0,0.0001746,2]
[398529978,1765793440257,-250.46861723,0.00017466,2]
[398529979,1765793440267,-1639.63,0.00017477,2]
[398529980,1765793440276,-171.6085101,0.000175,2]
[398529981,1765793440285,-550.0,0.00017503,2]
[398529982,1765793440294,-2521.9245963,0.00017506,2]
[398529983,1765793440304,-1186.10475344,0.00017506,2]
[398529984,1765793440603,-3982.95656773,0.00017506,2]
[398529985,1765793440613,-1006.79331904,0.00017521,2]
[398529986,1765793440623,-1000.0,0.00017521,2]
[398529987,1765793440632,-1000.0,0.00017521,2]
[398529988,1765793440642,-1000.0,0.00017521,2]
[398529989,1765793440651,-864.69118953,0.00017521,2]
[398529990,1765793440661,-500.0,0.00017521,2]
[398529991,1765793440670,-1000.0,0.00017521,2]
[398529992,1765793440680,-1000.0,0.00017521,2]
[398529993,1765793440689,-879.34447673,0.00017521,2]
[398529994,1765793440698,-1000.0,0.00017521,2]
[398529995,1765793440708,-1003.38309233,0.00017521,2]
[398529996,1765793440720,-1000.0,0.00017521,2]
[398529997,1765793440729,-1000.0,0.00017521,2]
[398529998,1765793440739,-916.5,0.00017534,4]
[398529999,1765793440747,-517.0,0.00017551,2]
[398530000,1765793440756,-500.0,0.00017553,2]
[398530001,1765793440766,-150.0,0.00017553,2]
[398530002,1765793440775,-1502.0,0.00017557,2]
[398530003,1765793440784,-595.37131296,0.00017557,2]
[398530004,1765793440794,-354.73,0.00017565,2]
[398530005,1765793440803,-517.0,0.00017571,2]
[398530006,1765793440813,-543.7,0.00017582,2]
[398530007,1765793440822,-517.0,0.00017609,2]
[398530008,1765793440832,-1022.25146876,0.0001764,2]
[398530009,1765793440841,-1708.0,0.0001764,2]
[398530010,1765793440850,-517.0,0.00017682,2]
[398530011,1765793440859,-500.0,0.0001769,2]
[398530012,1765793440868,-1204.98,0.00017728,2]
[398530013,1765793440877,-150.99,0.00017728,2]
[398530014,1765793440886,-253.96,0.00017728,2]
[398530015,1765793440895,-3779.05,0.00017728,2]
[398530016,1765793440905,-25642.6,0.00017728,2]
[398530017,1765793440915,-517.0,0.00017732,2]
[398530018,1765793440924,-517.0,0.00017734,2]
[398530019,1765793440934,-1639.63,0.00017751,2]
[398530020,1765793440944,-2521.9245963,0.00017784,2]
[398530021,1765793440954,-5169.06132117,0.00017784,2]
[398530022,1765793440963,-916.5,0.00017808,5]
[398530023,1765793440972,-1708.0,0.0001782,2]
[398530024,1765793440981,-250.46861723,0.00017824,2]
[398530025,1765793440990,-500.0,0.00017827,2]
[398530026,1765793440999,-311.1,0.0001783,2]
[398530027,1765793441008,-200.0,0.00017856,2]
[398530028,1765793441017,-543.7,0.00017856,2]
[398530029,1765793441026,-517.0,0.00017856,2]
[398530030,1765793441036,-420.0,0.00017878,2]